[Event "Late-Titled-Tuesday-Blitz-October-03-2023"]
[Site "Chess.com"]
[Date "2023.10.03"]
[Round "2"]
[White "pirulillo"]
[Black "GoltsevDmitry2000"]
[Result "0-1"]
[WhiteElo "2361"]
[BlackElo "2682"]
[TimeControl "180+1"]
[EndTime "14:15:48 PDT"]
[Termination "GoltsevDmitry2000 won by resignation"]

1. e4 {[%clk 0:03:00.3]} 1... e6 {[%clk 0:03:00.4]} 2. d3 {[%clk 0:02:43.3]}
2... d5 {[%clk 0:03:01.3]} 3. Nd2 {[%clk 0:02:41.8]} 3... Bc5 {[%clk 0:03:00.5]}
4. Ngf3 {[%clk 0:02:39.3]} 4... Nf6 {[%clk 0:03:00]} 5. e5 {[%clk 0:02:37]} 5...
Nfd7 {[%clk 0:02:59.6]} 6. d4 {[%clk 0:02:37]} 6... Bb6 {[%clk 0:03:00.1]} 7. c4
{[%clk 0:02:34.8]} 7... c5 {[%clk 0:02:51.2]} 8. cxd5 {[%clk 0:02:33]} 8... exd5
{[%clk 0:02:52.1]} 9. Bd3 {[%clk 0:02:25.9]} 9... cxd4 {[%clk 0:02:44.8]} 10.
Nb3 {[%clk 0:02:20.4]} 10... Nc6 {[%clk 0:02:42.7]} 11. a3 {[%clk 0:02:17]}
11... Ndxe5 {[%clk 0:02:38.3]} 12. O-O {[%clk 0:02:06.3]} 12... Nxd3 {[%clk
0:02:07]} 13. Qxd3 {[%clk 0:02:02.5]} 13... O-O {[%clk 0:02:06.5]} 14. Nfxd4
{[%clk 0:01:48.3]} 14... Ne5 {[%clk 0:02:02.7]} 15. Qg3 {[%clk 0:01:42.5]} 15...
Nc4 {[%clk 0:01:46.6]} 16. Bg5 {[%clk 0:01:28.8]} 16... Qc7 {[%clk 0:01:35.9]}
17. Bf4 {[%clk 0:01:25.2]} 17... Qd7 {[%clk 0:01:29.6]} 18. h3 {[%clk 0:01:18]}
18... f6 {[%clk 0:01:18.8]} 19. Rfe1 {[%clk 0:01:05.1]} 19... Qf7 {[%clk
0:01:12.9]} 20. Re2 {[%clk 0:00:53.4]} 20... Bd7 {[%clk 0:01:01.6]} 21. Bd6
{[%clk 0:00:43]} 21... Rfe8 {[%clk 0:00:58.6]} 22. Rae1 {[%clk 0:00:42.1]} 22...
Rxe2 {[%clk 0:00:58.2]} 23. Rxe2 {[%clk 0:00:39.5]} 23... Re8 {[%clk 0:00:58.5]}
24. Rxe8+ {[%clk 0:00:32.5]} 24... Qxe8 {[%clk 0:00:58.3]} 25. Bc7 {[%clk
0:00:29.2]} 25... Bxc7 {[%clk 0:00:55.1]} 26. Qxc7 {[%clk 0:00:28.1]} 26... Qe1+
{[%clk 0:00:54.7]} 27. Kh2 {[%clk 0:00:28.2]} 27... Qe5+ {[%clk 0:00:55.4]} 28.
Qxe5 {[%clk 0:00:28.4]} 28... fxe5 {[%clk 0:00:56.1]} 29. Nf3 {[%clk 0:00:27.9]}
29... e4 {[%clk 0:00:55.5]} 30. Nfd4 {[%clk 0:00:26.3]} 30... Nxb2 {[%clk
0:00:55.6]} 31. Nc5 {[%clk 0:00:26.3]} 31... Bc6 {[%clk 0:00:52.4]} 32. a4
{[%clk 0:00:25.9]} 32... Nxa4 {[%clk 0:00:50.4]} 33. Nxc6 {[%clk 0:00:24.1]}
33... Nxc5 {[%clk 0:00:50.8]} 34. Ne7+ {[%clk 0:00:24.5]} 34... Kf7 {[%clk
0:00:50.1]} 35. Nxd5 {[%clk 0:00:25.4]} 35... a5 {[%clk 0:00:50]} 0-1

[Event "Late-Titled-Tuesday-Blitz-October-03-2023"]
[Site "Chess.com"]
[Date "2023.10.03"]
[Round "2"]
[White "ural58"]
[Black "Chempiblinka"]
[Result "1-0"]
[WhiteElo "2504"]
[BlackElo "2290"]
[TimeControl "180+1"]
[EndTime "14:15:50 PDT"]
[Termination "ural58 won on time"]

1. e4 {[%clk 0:02:58.4]} 1... c5 {[%clk 0:03:00]} 2. b3 {[%clk 0:02:56.9]} 2...
Nf6 {[%clk 0:02:55]} 3. e5 {[%clk 0:02:54.2]} 3... Nd5 {[%clk 0:02:50.9]} 4. Nc3
{[%clk 0:02:53.4]} 4... Nxc3 {[%clk 0:02:50.2]} 5. dxc3 {[%clk 0:02:53.5]} 5...
Nc6 {[%clk 0:02:45.9]} 6. Nf3 {[%clk 0:02:53.3]} 6... g6 {[%clk 0:02:46.3]} 7.
Bc4 {[%clk 0:02:53.3]} 7... Bg7 {[%clk 0:02:46.5]} 8. O-O {[%clk 0:02:53.2]}
8... O-O {[%clk 0:02:41.8]} 9. Bf4 {[%clk 0:02:52]} 9... a6 {[%clk 0:02:36.8]}
10. a4 {[%clk 0:02:51.1]} 10... Qc7 {[%clk 0:02:29.2]} 11. Qd2 {[%clk
0:02:49.9]} 11... Nxe5 {[%clk 0:02:23.5]} 12. Nxe5 {[%clk 0:02:39.7]} 12... Bxe5
{[%clk 0:02:24.4]} 13. Bxe5 {[%clk 0:02:39.1]} 13... Qxe5 {[%clk 0:02:24.4]} 14.
Rae1 {[%clk 0:02:37.8]} 14... Qf6 {[%clk 0:02:19.9]} 15. Qe3 {[%clk 0:02:30.4]}
15... b5 {[%clk 0:01:50]} 16. axb5 {[%clk 0:02:27.8]} 16... axb5 {[%clk
0:01:50.9]} 17. Bxb5 {[%clk 0:02:27.8]} 17... Ra2 {[%clk 0:01:51.8]} 18. Bd3
{[%clk 0:02:06.3]} 18... d5 {[%clk 0:01:43.2]} 19. Qxe7 {[%clk 0:02:03.6]} 19...
Qxc3 {[%clk 0:01:42.8]} 20. h4 {[%clk 0:01:43]} 20... Ba6 {[%clk 0:01:26.1]} 21.
Bxa6 {[%clk 0:01:31.2]} 21... Rxa6 {[%clk 0:01:27]} 22. Re2 {[%clk 0:01:27.7]}
22... Ra2 {[%clk 0:01:16.4]} 23. Rc1 {[%clk 0:01:26.4]} 23... d4 {[%clk
0:01:13]} 24. Qg5 {[%clk 0:01:08.9]} 24... Rfa8 {[%clk 0:00:48.8]} 25. h5 {[%clk
0:01:08]} 25... Ra1 {[%clk 0:00:45.2]} 26. Rxa1 {[%clk 0:01:07.3]} 26... Qxa1+
{[%clk 0:00:20.6]} 27. Kh2 {[%clk 0:01:08.2]} 27... Qd1 {[%clk 0:00:03.4]} 28.
Qe5 {[%clk 0:01:01.7]} 1-0

[Event "Late-Titled-Tuesday-Blitz-October-03-2023"]
[Site "Chess.com"]
[Date "2023.10.03"]
[Round "2"]
[White "Slovak_fighter2000"]
[Black "Zurability"]
[Result "0-1"]
[WhiteElo "2447"]
[BlackElo "2704"]
[TimeControl "180+1"]
[EndTime "14:15:54 PDT"]
[Termination "Zurability won by checkmate"]

1. d4 {[%clk 0:03:00.4]} 1... Nf6 {[%clk 0:02:59.6]} 2. c4 {[%clk 0:03:00.9]}
2... e6 {[%clk 0:03:00]} 3. Nf3 {[%clk 0:02:59.9]} 3... b6 {[%clk 0:02:59.8]} 4.
a3 {[%clk 0:03:00.1]} 4... Bb7 {[%clk 0:02:56.9]} 5. Nc3 {[%clk 0:03:00.1]} 5...
d5 {[%clk 0:02:57.4]} 6. cxd5 {[%clk 0:03:00.1]} 6... Nxd5 {[%clk 0:02:56.7]} 7.
Qc2 {[%clk 0:03:00]} 7... Nxc3 {[%clk 0:02:54.8]} 8. bxc3 {[%clk 0:02:59.9]}
8... c5 {[%clk 0:02:55]} 9. e4 {[%clk 0:02:57.1]} 9... Be7 {[%clk 0:02:41.1]}
10. Bb5+ {[%clk 0:02:55.4]} 10... Bc6 {[%clk 0:02:24.7]} 11. Bd3 {[%clk
0:02:55.3]} 11... O-O {[%clk 0:02:24.9]} 12. O-O {[%clk 0:02:54.6]} 12... h6
{[%clk 0:02:17.5]} 13. Bb2 {[%clk 0:02:45.6]} 13... Nd7 {[%clk 0:02:06]} 14.
Rad1 {[%clk 0:02:45.3]} 14... cxd4 {[%clk 0:02:02]} 15. cxd4 {[%clk 0:02:45.3]}
15... Rc8 {[%clk 0:02:02.5]} 16. Qe2 {[%clk 0:02:46.1]} 16... Bb7 {[%clk
0:02:00.7]} 17. Bb1 {[%clk 0:02:20.8]} 17... Nf6 {[%clk 0:01:39.1]} 18. d5
{[%clk 0:02:12.3]} 18... exd5 {[%clk 0:01:32.6]} 19. e5 {[%clk 0:02:12.5]} 19...
Nh5 {[%clk 0:01:05]} 20. Nd4 {[%clk 0:02:08.9]} 20... Nf4 {[%clk 0:00:58.8]} 21.
Qg4 {[%clk 0:02:08.6]} 21... Ng6 {[%clk 0:00:44.2]} 22. Bxg6 {[%clk 0:01:54]}
22... fxg6 {[%clk 0:00:44.1]} 23. Ne6 {[%clk 0:01:49.2]} 23... Qd7 {[%clk
0:00:42.4]} 24. Qxg6 {[%clk 0:01:45.9]} 24... Rf7 {[%clk 0:00:41.3]} 25. f4
{[%clk 0:01:37.7]} 25... d4 {[%clk 0:00:28.7]} 26. Bxd4 {[%clk 0:01:28.4]} 26...
Qc6 {[%clk 0:00:25.5]} 27. f5 {[%clk 0:01:22.8]} 27... Qe4 {[%clk 0:00:17.1]}
28. Rde1 {[%clk 0:01:14.9]} 28... Qd5 {[%clk 0:00:14.2]} 29. Ba1 {[%clk
0:01:11.2]} 29... Rc2 {[%clk 0:00:13.4]} 30. Rf2 {[%clk 0:01:07.6]} 30... Rxf2
{[%clk 0:00:12.8]} 31. Kxf2 {[%clk 0:01:08.1]} 31... Bh4+ {[%clk 0:00:13.4]} 32.
g3 {[%clk 0:00:55.1]} 32... Qf3+ {[%clk 0:00:12.7]} 33. Kg1 {[%clk 0:00:54.1]}
33... Qg2# {[%clk 0:00:12.4]} 0-1

[Event "Late-Titled-Tuesday-Blitz-October-03-2023"]
[Site "Chess.com"]
[Date "2023.10.03"]
[Round "2"]
[White "MikeSailer"]
[Black "lemures27"]
[Result "0-1"]
[WhiteElo "2135"]
[BlackElo "2431"]
[TimeControl "180+1"]
[EndTime "14:15:55 PDT"]
[Termination "lemures27 won on time"]

1. d4 {[%clk 0:03:00]} 1... d5 {[%clk 0:02:57.6]} 2. Bf4 {[%clk 0:02:58.9]} 2...
c5 {[%clk 0:02:57]} 3. e4 {[%clk 0:02:53.7]} 3... dxe4 {[%clk 0:02:53.1]} 4. d5
{[%clk 0:02:53.3]} 4... Nf6 {[%clk 0:02:52.2]} 5. Nc3 {[%clk 0:02:53.2]} 5...
Bf5 {[%clk 0:02:47.8]} 6. Bb5+ {[%clk 0:02:50.8]} 6... Bd7 {[%clk 0:02:46.1]} 7.
Qd2 {[%clk 0:02:40.6]} 7... a6 {[%clk 0:02:43.3]} 8. Bxd7+ {[%clk 0:02:40.2]}
8... Nbxd7 {[%clk 0:02:43.3]} 9. O-O-O {[%clk 0:02:38.3]} 9... b5 {[%clk
0:02:43.3]} 10. f3 {[%clk 0:02:31.4]} 10... exf3 {[%clk 0:02:39.8]} 11. Nxf3
{[%clk 0:02:31.1]} 11... b4 {[%clk 0:02:39.8]} 12. Na4 {[%clk 0:02:19.6]} 12...
g6 {[%clk 0:02:37.7]} 13. d6 {[%clk 0:01:58.1]} 13... e6 {[%clk 0:02:36.1]} 14.
h4 {[%clk 0:01:46.7]} 14... Bg7 {[%clk 0:02:31]} 15. Bh6 {[%clk 0:01:24.3]}
15... O-O {[%clk 0:02:20.7]} 16. Bxg7 {[%clk 0:01:24.1]} 16... Kxg7 {[%clk
0:02:19.8]} 17. h5 {[%clk 0:01:24.9]} 17... Nxh5 {[%clk 0:02:19]} 18. Rxh5
{[%clk 0:01:17.9]} 18... gxh5 {[%clk 0:02:18.3]} 19. Rh1 {[%clk 0:01:17.7]}
19... Qf6 {[%clk 0:02:13]} 20. Rxh5 {[%clk 0:01:11.1]} 20... h6 {[%clk
0:02:13.4]} 21. Nxc5 {[%clk 0:00:43.4]} 21... Nxc5 {[%clk 0:02:12]} 22. Rxc5
{[%clk 0:00:43.3]} 22... a5 {[%clk 0:02:12.5]} 23. Rc4 {[%clk 0:00:23.4]} 23...
Rac8 {[%clk 0:02:00.4]} 24. Rg4+ {[%clk 0:00:17]} 24... Kh7 {[%clk 0:01:59.4]}
25. d7 {[%clk 0:00:12.8]} 25... Rcd8 {[%clk 0:01:58.1]} 26. Qd3+ {[%clk
0:00:11.6]} 26... Qf5 {[%clk 0:01:57.2]} 27. Qd6 {[%clk 0:00:07.3]} 27... Qxg4
{[%clk 0:01:54.2]} 28. b3 {[%clk 0:00:06.5]} 28... Qf5 {[%clk 0:01:51.5]} 29.
Ne5 {[%clk 0:00:05.6]} 29... Qf6 {[%clk 0:01:49.5]} 30. Nc6 {[%clk 0:00:05.5]}
30... Qa1+ {[%clk 0:01:46.2]} 31. Kd2 {[%clk 0:00:05.6]} 31... Qc3+ {[%clk
0:01:45.2]} 32. Kc1 {[%clk 0:00:06.5]} 32... Rg8 {[%clk 0:01:44.3]} 33. Nxd8
{[%clk 0:00:05.7]} 33... Rxd8 {[%clk 0:01:43.5]} 34. Qe7 {[%clk 0:00:05.5]}
34... Qe1+ {[%clk 0:01:38.9]} 35. Kb2 {[%clk 0:00:06.3]} 35... Qe5+ {[%clk
0:01:38.1]} 36. Kb1 {[%clk 0:00:06.1]} 36... Qg5 {[%clk 0:01:35.3]} 37. Qxf7+
{[%clk 0:00:05.8]} 37... Qg7 {[%clk 0:01:35]} 38. Qxe6 {[%clk 0:00:02.8]} 38...
Qxd7 {[%clk 0:01:34.9]} 39. Qe4+ {[%clk 0:00:02.7]} 39... Kg8 {[%clk 0:01:34]}
40. Qg6+ {[%clk 0:00:02.9]} 40... Qg7 {[%clk 0:01:30.4]} 41. Qe6+ {[%clk
0:00:03.5]} 41... Kh8 {[%clk 0:01:30.9]} 0-1

[Event "Late-Titled-Tuesday-Blitz-October-03-2023"]
[Site "Chess.com"]
[Date "2023.10.03"]
[Round "2"]
[White "FabianoCaruana"]
[Black "HamedWafa4"]
[Result "1-0"]
[WhiteElo "3063"]
[BlackElo "2616"]
[TimeControl "180+1"]
[EndTime "14:15:56 PDT"]
[Termination "FabianoCaruana won by resignation"]

1. d4 {[%clk 0:03:00.9]} 1... Nf6 {[%clk 0:02:59.9]} 2. Bf4 {[%clk 0:02:59]}
2... e6 {[%clk 0:02:58.9]} 3. Nf3 {[%clk 0:02:59.3]} 3... c6 {[%clk 0:02:56.8]}
4. e3 {[%clk 0:02:59]} 4... d5 {[%clk 0:02:52.7]} 5. Nbd2 {[%clk 0:02:58.9]}
5... Bd6 {[%clk 0:02:50.7]} 6. Ne5 {[%clk 0:02:58.3]} 6... O-O {[%clk
0:02:50.5]} 7. Bd3 {[%clk 0:02:58.2]} 7... Qc7 {[%clk 0:02:42.7]} 8. Bg3 {[%clk
0:02:55.6]} 8... c5 {[%clk 0:02:39.9]} 9. c3 {[%clk 0:02:55.4]} 9... Nc6 {[%clk
0:02:38]} 10. f4 {[%clk 0:02:55.5]} 10... b6 {[%clk 0:02:30.6]} 11. O-O {[%clk
0:02:52.9]} 11... Bb7 {[%clk 0:02:30.6]} 12. Bh4 {[%clk 0:02:52.3]} 12... Nd7
{[%clk 0:02:28.1]} 13. Ndf3 {[%clk 0:02:40.6]} 13... f5 {[%clk 0:02:27.3]} 14.
g4 {[%clk 0:02:31.9]} 14... Rae8 {[%clk 0:02:21.3]} 15. Kh1 {[%clk 0:02:27.5]}
15... g6 {[%clk 0:02:20.8]} 16. Rg1 {[%clk 0:02:26.7]} 16... Kh8 {[%clk
0:02:15.5]} 17. Bg5 {[%clk 0:02:25]} 17... Be7 {[%clk 0:02:13.5]} 18. Bh6 {[%clk
0:02:23.3]} 18... Ndxe5 {[%clk 0:02:10.4]} 19. fxe5 {[%clk 0:02:21]} 19... Rf7
{[%clk 0:02:08.7]} 20. Qe2 {[%clk 0:02:11.4]} 20... Bf8 {[%clk 0:02:04.2]} 21.
Bf4 {[%clk 0:02:07.7]} 21... fxg4 {[%clk 0:01:57.3]} 22. Rxg4 {[%clk 0:02:08.5]}
22... Ne7 {[%clk 0:01:57.6]} 23. Ng5 {[%clk 0:02:07.2]} 23... Nf5 {[%clk
0:01:50.5]} 24. Nxf7+ {[%clk 0:02:07.3]} 24... Qxf7 {[%clk 0:01:51.4]} 25. Bxf5
{[%clk 0:02:03.2]} 25... exf5 {[%clk 0:01:50.9]} 26. Rgg1 {[%clk 0:01:58.1]}
26... Bg7 {[%clk 0:01:44.2]} 27. h4 {[%clk 0:01:55.8]} 27... h5 {[%clk
0:01:42.6]} 28. Rg3 {[%clk 0:01:51.9]} 28... Kh7 {[%clk 0:01:42.5]} 29. Rag1
{[%clk 0:01:51.9]} 29... Re6 {[%clk 0:01:42.8]} 30. Kh2 {[%clk 0:01:47.9]} 30...
c4 {[%clk 0:01:40.5]} 31. b3 {[%clk 0:01:28.9]} 31... b5 {[%clk 0:01:40.4]} 32.
Rb1 {[%clk 0:01:20.7]} 32... a6 {[%clk 0:01:40]} 33. a4 {[%clk 0:01:17.2]} 33...
Bc6 {[%clk 0:01:40.2]} 34. axb5 {[%clk 0:01:14.7]} 34... axb5 {[%clk 0:01:39.6]}
35. b4 {[%clk 0:01:14]} 35... Bb7 {[%clk 0:01:38.1]} 36. Ra1 {[%clk 0:01:14.3]}
36... Bc6 {[%clk 0:01:37.5]} 37. Rg2 {[%clk 0:01:11.9]} 37... Bh6 {[%clk
0:01:35.6]} 38. Qf3 {[%clk 0:01:11.6]} 38... Bf8 {[%clk 0:01:31.4]} 39. Rga2
{[%clk 0:01:10.3]} 39... Bb7 {[%clk 0:01:25.5]} 40. Ra7 {[%clk 0:01:09.8]} 40...
Re7 {[%clk 0:01:25.6]} 41. Qg3 {[%clk 0:01:07.6]} 41... Bg7 {[%clk 0:01:25.3]}
42. R1a5 {[%clk 0:01:06.1]} 42... Qe8 {[%clk 0:01:24.1]} 43. Bg5 {[%clk
0:01:03.7]} 43... Rd7 {[%clk 0:01:24.2]} 44. Rxb5 {[%clk 0:01:02.3]} 44... Bc6
{[%clk 0:01:19.4]} 45. Rxd7 {[%clk 0:01:02.4]} 45... Qxd7 {[%clk 0:01:20.3]} 46.
Ra5 {[%clk 0:01:01.4]} 46... Qb7 {[%clk 0:01:19.3]} 47. e6 {[%clk 0:00:57.6]}
47... Bf8 {[%clk 0:01:16.3]} 48. Qe5 {[%clk 0:00:54.3]} 48... Bg7 {[%clk
0:01:16.1]} 49. Qd6 {[%clk 0:00:54.5]} 49... f4 {[%clk 0:01:15]} 50. Qxf4 {[%clk
0:00:51.7]} 50... Be8 {[%clk 0:01:14.1]} 51. Bf6 {[%clk 0:00:48]} 51... Bf8
{[%clk 0:01:14.1]} 52. Be5 {[%clk 0:00:45.5]} 52... Qe7 {[%clk 0:01:12.3]} 53.
Qf6 {[%clk 0:00:43]} 1-0

[Event "Late-Titled-Tuesday-Blitz-October-03-2023"]
[Site "Chess.com"]
[Date "2023.10.03"]
[Round "2"]
[White "Bilan_Danila"]
[Black "Kosak12"]
[Result "0-1"]
[WhiteElo "2533"]
[BlackElo "2796"]
[TimeControl "180+1"]
[EndTime "14:15:56 PDT"]
[Termination "Kosak12 won by checkmate"]

1. d4 {[%clk 0:02:59.8]} 1... Nf6 {[%clk 0:02:58.9]} 2. Nf3 {[%clk 0:03:00]}
2... d5 {[%clk 0:02:58.1]} 3. c4 {[%clk 0:02:59.8]} 3... e6 {[%clk 0:02:54.6]}
4. Nc3 {[%clk 0:02:59.8]} 4... c5 {[%clk 0:02:53.6]} 5. cxd5 {[%clk 0:02:59.1]}
5... cxd4 {[%clk 0:02:53.7]} 6. Qxd4 {[%clk 0:02:56.5]} 6... exd5 {[%clk
0:02:53.7]} 7. Bg5 {[%clk 0:02:54.8]} 7... Be7 {[%clk 0:02:52.2]} 8. e3 {[%clk
0:02:54.5]} 8... O-O {[%clk 0:02:51.4]} 9. Bd3 {[%clk 0:02:51.4]} 9... h6 {[%clk
0:02:47.5]} 10. Bh4 {[%clk 0:02:41]} 10... Nc6 {[%clk 0:02:41.5]} 11. Qa4 {[%clk
0:02:37.4]} 11... Be6 {[%clk 0:02:16]} 12. O-O {[%clk 0:02:31.6]} 12... Qb6
{[%clk 0:02:15.9]} 13. Rab1 {[%clk 0:02:15.1]} 13... a6 {[%clk 0:02:06.8]} 14.
Ne2 {[%clk 0:02:08.5]} 14... Nb4 {[%clk 0:02:03.4]} 15. Qd1 {[%clk 0:01:42.8]}
15... Nxa2 {[%clk 0:01:58.9]} 16. Nf4 {[%clk 0:01:37]} 16... Nb4 {[%clk
0:01:57.3]} 17. Nd4 {[%clk 0:01:27.4]} 17... Bd7 {[%clk 0:01:47.7]} 18. Bf5
{[%clk 0:01:17.3]} 18... Rad8 {[%clk 0:01:33.2]} 19. Bxd7 {[%clk 0:01:10.2]}
19... Rxd7 {[%clk 0:01:34.1]} 20. Nf5 {[%clk 0:01:10.3]} 20... Bd8 {[%clk
0:01:34.4]} 21. Qf3 {[%clk 0:01:03.2]} 21... Ne4 {[%clk 0:01:20.5]} 22. Bxd8
{[%clk 0:00:53.1]} 22... Qxd8 {[%clk 0:01:21.4]} 23. Nh5 {[%clk 0:00:36.5]}
23... g6 {[%clk 0:01:10.9]} 24. Nxh6+ {[%clk 0:00:24.9]} 24... Kh7 {[%clk
0:01:10.9]} 25. Nf5 {[%clk 0:00:16.6]} 25... Qg5 {[%clk 0:00:53.1]} 26. Nhg3
{[%clk 0:00:04.8]} 26... gxf5 {[%clk 0:00:52.2]} 27. Nxf5 {[%clk 0:00:05.2]}
27... Rh8 {[%clk 0:00:43.4]} 28. Qh3+ {[%clk 0:00:04.1]} 28... Kg8 {[%clk
0:00:43.8]} 29. Nh6+ {[%clk 0:00:04.6]} 29... Qxh6 {[%clk 0:00:44.2]} 30. Qxd7
{[%clk 0:00:05.5]} 30... Qxh2# {[%clk 0:00:44.2]} 0-1

[Event "Late-Titled-Tuesday-Blitz-October-03-2023"]
[Site "Chess.com"]
[Date "2023.10.03"]
[Round "2"]
[White "Mr_November18"]
[Black "Dzidzik2203"]
[Result "0-1"]
[WhiteElo "2006"]
[BlackElo "2402"]
[TimeControl "180+1"]
[EndTime "14:16:07 PDT"]
[Termination "Dzidzik2203 won by checkmate"]

1. e4 {[%clk 0:03:00.9]} 1... e5 {[%clk 0:02:57.2]} 2. Nf3 {[%clk 0:03:00.2]}
2... Nc6 {[%clk 0:02:50.2]} 3. d4 {[%clk 0:02:59.5]} 3... exd4 {[%clk
0:02:50.3]} 4. Bc4 {[%clk 0:02:59.1]} 4... Nf6 {[%clk 0:02:48.2]} 5. e5 {[%clk
0:02:58.8]} 5... d5 {[%clk 0:02:48.1]} 6. Bb5 {[%clk 0:02:58.1]} 6... Ne4 {[%clk
0:02:48.5]} 7. Nxd4 {[%clk 0:02:57.9]} 7... Bc5 {[%clk 0:02:49.1]} 8. Be3 {[%clk
0:02:49.8]} 8... Bd7 {[%clk 0:02:48.9]} 9. Bxc6 {[%clk 0:02:49.4]} 9... bxc6
{[%clk 0:02:49]} 10. O-O {[%clk 0:02:45.2]} 10... O-O {[%clk 0:02:47.8]} 11. f3
{[%clk 0:02:44.7]} 11... Ng5 {[%clk 0:02:48]} 12. f4 {[%clk 0:02:44.3]} 12...
Ne4 {[%clk 0:02:48.3]} 13. Nd2 {[%clk 0:02:44]} 13... Nxd2 {[%clk 0:02:46.7]}
14. Qxd2 {[%clk 0:02:43.7]} 14... Bb6 {[%clk 0:02:47.6]} 15. Nb3 {[%clk
0:02:42.8]} 15... Bf5 {[%clk 0:02:39.3]} 16. Qc3 {[%clk 0:02:40.7]} 16... Qd7
{[%clk 0:02:29.5]} 17. Kh1 {[%clk 0:02:39.5]} 17... Be4 {[%clk 0:02:27.5]} 18.
Nc5 {[%clk 0:02:34.6]} 18... Bxc5 {[%clk 0:02:26.7]} 19. Bxc5 {[%clk 0:02:32.7]}
19... Rfe8 {[%clk 0:02:26.4]} 20. Rad1 {[%clk 0:02:23]} 20... Rab8 {[%clk
0:02:25.7]} 21. b4 {[%clk 0:02:19.5]} 21... Qf5 {[%clk 0:02:25.6]} 22. Rf2
{[%clk 0:02:08.1]} 22... Re6 {[%clk 0:02:20.8]} 23. h3 {[%clk 0:01:48.1]} 23...
Rg6 {[%clk 0:02:13]} 24. Kh2 {[%clk 0:01:46]} 24... h5 {[%clk 0:02:13.2]} 25. g3
{[%clk 0:01:28.1]} 25... a6 {[%clk 0:01:40.9]} 26. Rg1 {[%clk 0:01:26.6]} 26...
f6 {[%clk 0:01:33.2]} 27. exf6 {[%clk 0:01:21.7]} 27... gxf6 {[%clk 0:01:33.3]}
28. a3 {[%clk 0:01:18.3]} 28... Kf7 {[%clk 0:01:33.2]} 29. Bd4 {[%clk
0:01:15.5]} 29... Rh8 {[%clk 0:01:32.4]} 30. Qxc6 {[%clk 0:01:10.7]} 30... Rg4
{[%clk 0:01:26.4]} 31. Qxc7+ {[%clk 0:01:03.4]} 31... Kg6 {[%clk 0:01:26.5]} 32.
h4 {[%clk 0:00:37.2]} 32... Kh6 {[%clk 0:01:18.1]} 33. Qf7 {[%clk 0:00:33.6]}
33... Rg6 {[%clk 0:01:13.8]} 34. c3 {[%clk 0:00:29.4]} 34... Rhg8 {[%clk
0:01:12.7]} 35. c4 {[%clk 0:00:24]} 35... R8g7 {[%clk 0:01:12.6]} 36. Qf8 {[%clk
0:00:21.6]} 36... Kh7 {[%clk 0:01:09.7]} 37. cxd5 {[%clk 0:00:19]} 37... Qg4
{[%clk 0:01:08.2]} 38. d6 {[%clk 0:00:14.3]} 38... Bf5 {[%clk 0:00:55.5]} 39.
Rh1 {[%clk 0:00:10.4]} 39... Qxg3# {[%clk 0:00:54.3]} 0-1

[Event "Late-Titled-Tuesday-Blitz-October-03-2023"]
[Site "Chess.com"]
[Date "2023.10.03"]
[Round "2"]
[White "Casper"]
[Black "lluiss"]
[Result "1-0"]
[WhiteElo "2440"]
[BlackElo "2170"]
[TimeControl "180+1"]
[EndTime "14:16:11 PDT"]
[Termination "Casper won by resignation"]

1. e4 {[%clk 0:02:57.9]} 1... c5 {[%clk 0:02:59.4]} 2. d4 {[%clk 0:02:57.6]}
2... cxd4 {[%clk 0:02:58.8]} 3. Qxd4 {[%clk 0:02:58.5]} 3... Nc6 {[%clk
0:02:57.8]} 4. Qe3 {[%clk 0:02:59.2]} 4... d6 {[%clk 0:02:56.5]} 5. Nc3 {[%clk
0:02:59.5]} 5... Nf6 {[%clk 0:02:56.5]} 6. Bd2 {[%clk 0:03:00.2]} 6... g6 {[%clk
0:02:54.3]} 7. O-O-O {[%clk 0:03:00.8]} 7... Bg7 {[%clk 0:02:54]} 8. f3 {[%clk
0:02:59.6]} 8... O-O {[%clk 0:02:53.7]} 9. h4 {[%clk 0:02:59.9]} 9... h5 {[%clk
0:02:51.5]} 10. Nge2 {[%clk 0:02:53.4]} 10... Be6 {[%clk 0:02:51]} 11. Nf4
{[%clk 0:02:53.3]} 11... Ne5 {[%clk 0:02:45.3]} 12. Nxe6 {[%clk 0:02:50.9]}
12... fxe6 {[%clk 0:02:45.1]} 13. Qg5 {[%clk 0:02:51.7]} 13... Nh7 {[%clk
0:02:36.3]} 14. Qg3 {[%clk 0:02:49.9]} 14... Rc8 {[%clk 0:02:23.9]} 15. Bf4
{[%clk 0:02:48.3]} 15... Qe8 {[%clk 0:02:19.5]} 16. Be2 {[%clk 0:02:24.8]} 16...
Qf7 {[%clk 0:02:19.6]} 17. Be3 {[%clk 0:02:23.3]} 17... Nc4 {[%clk 0:02:08.2]}
18. Bd4 {[%clk 0:02:15.6]} 18... Bh6+ {[%clk 0:02:00.5]} 19. Kb1 {[%clk
0:02:14.3]} 19... e5 {[%clk 0:02:00.8]} 20. Bxa7 {[%clk 0:02:08.1]} 20... b6
{[%clk 0:01:33.9]} 21. Nd5 {[%clk 0:01:53.2]} 21... Bf4 {[%clk 0:01:23.5]} 22.
Qe1 {[%clk 0:01:11.3]} 22... Ne3 {[%clk 0:01:18]} 23. Nxe3 {[%clk 0:01:04]}
23... Bxe3 {[%clk 0:01:18.1]} 24. Qb4 {[%clk 0:00:29.7]} 24... Nf6 {[%clk
0:01:02.6]} 25. b3 {[%clk 0:00:22.2]} 25... e6 {[%clk 0:00:53.5]} 26. Bxb6
{[%clk 0:00:16.6]} 26... Rb8 {[%clk 0:00:52.8]} 27. Rxd6 {[%clk 0:00:17.1]}
27... Qe7 {[%clk 0:00:42.8]} 28. a3 {[%clk 0:00:08.1]} 28... Qb7 {[%clk
0:00:38.4]} 29. Bxe3 {[%clk 0:00:05.7]} 29... Qe7 {[%clk 0:00:34.7]} 30. Qc5
{[%clk 0:00:04.4]} 30... Rfc8 {[%clk 0:00:34]} 31. Rc6 {[%clk 0:00:04.7]} 31...
Nd7 {[%clk 0:00:34.1]} 32. Qxe7 {[%clk 0:00:04.3]} 1-0